fUSD/lending_fUSD_20250620
["ID","MTS","AMOUNT","RATE_DAILY","PERIOD"]
[366665392,1750395040807,-490.0,0.00026976,4]
[366665393,1750395040817,-490.0,0.00026976,4]
[366665394,1750395040827,-587.81,0.00026976,4]
[366665395,1750395040837,-490.0,0.00026976,4]
[366665396,1750395040846,-490.0,0.00026976,4]
[366665397,1750395040856,-490.0,0.00026976,4]
[366665398,1750395040866,-490.0,0.00026976,4]
[366665399,1750395040876,-1272.19,0.00026976,4]
[366665400,1750395040885,-490.0,0.00026976,4]
[366665401,1750395040895,-490.0,0.00026976,4]
[366665402,1750395040904,-582.06,0.00026976,4]
[366665403,1750395040914,-490.0,0.00026976,4]
[366665404,1750395040924,-490.0,0.00026976,4]
[366665405,1750395040933,-490.0,0.00026976,4]
[366665406,1750395040943,-490.0,0.00026976,4]
[366665407,1750395040953,-490.0,0.00026976,4]
[366665408,1750395040963,-1755.15,0.00026976,4]
[366665409,1750395040973,-490.0,0.00026976,4]
[366665410,1750395040983,-490.0,0.00026976,4]
[366665411,1750395040993,-490.0,0.00026976,4]
[366665412,1750395041003,-490.0,0.00026976,4]
[366665413,1750395041013,-490.0,0.00026976,4]
[366665414,1750395041023,-529.61,0.00026976,4]
[366665415,1750395041033,-491.54,0.00026976,4]
[366665416,1750395041043,-490.0,0.00026976,4]
[366665417,1750395041053,-694.3,0.00026976,4]
[366665418,1750395041063,-490.0,0.00026976,4]
[366665419,1750395041073,-490.0,0.00026976,4]
[366665420,1750395041083,-492.597931,0.00026976,4]
[366665421,1750395041092,-509.74,0.00026976,4]
[366665422,1750395041103,-490.0,0.00026976,4]
[366665423,1750395041116,-636.57,0.00026976,4]
[366665424,1750395041126,-490.0,0.00026976,4]
[366665425,1750395041136,-490.0,0.00026976,4]
[366665426,1750395041146,-490.0,0.00026976,4]
[366665427,1750395041156,-490.0,0.00026976,4]
[366665428,1750395041166,-490.0,0.00026976,4]
[366665429,1750395041176,-340.48765451,0.00026976,4]
[366665430,1750395041186,-490.0,0.00026976,4]
[366665431,1750395041197,-490.0,0.00026976,4]
[366665432,1750395041207,-825.23,0.00026976,4]
[366665433,1750395041217,-490.0,0.00026976,4]
[366665434,1750395041227,-741.89,0.00026976,4]
[366665435,1750395041237,-490.0,0.00026976,4]
[366665436,1750395041247,-490.0,0.00026976,4]
[366665437,1750395041257,-490.0,0.00026976,4]
[366665438,1750395041267,-490.0,0.00026976,4]
[366665439,1750395041277,-490.0,0.00026976,4]
[366665440,1750395041286,-490.0,0.00026976,4]
[366665441,1750395041297,-490.0,0.00026976,4]
[366665442,1750395041307,-490.0,0.00026976,4]
[366665443,1750395041317,-490.0,0.00026976,4]
[366665444,1750395041327,-490.0,0.00026976,4]
[366665445,1750395041337,-490.0,0.00026976,4]
[366665446,1750395041347,-490.0,0.00026976,4]
[366665447,1750395041357,-1510.48,0.00026976,4]
[366665448,1750395041367,-490.0,0.00026976,4]
[366665449,1750395041377,-490.0,0.00026976,4]
[366665450,1750395041386,-741.61,0.00026976,4]
[366665451,1750395041397,-490.0,0.00026976,4]
[366665452,1750395041407,-490.0,0.00026976,4]
[366665453,1750395041417,-490.0,0.00026976,4]
[366665454,1750395041427,-490.0,0.00026976,4]
[366665455,1750395041437,-635.2,0.00026976,4]
[366665456,1750395041447,-477.12389283,0.00026976,4]
[366665457,1750395041457,-490.0,0.00026976,4]
[366665458,1750395041468,-490.0,0.00026976,4]
[366665459,1750395041478,-490.0,0.00026976,4]
[366665460,1750395041488,-1445.74,0.00026976,4]
[366665461,1750395041499,-490.0,0.00026976,4]
[366665462,1750395041510,-490.0,0.00026976,4]
[366665463,1750395041520,-490.0,0.00026976,4]
[366665464,1750395041531,-3150.8,0.00026976,4]
[366665465,1750395041542,-1691.68,0.00026976,4]
[366665466,1750395041552,-490.0,0.00026976,4]
[366665467,1750395041562,-490.0,0.00026976,4]
[366665468,1750395041572,-3570.71,0.00026976,4]
[366665469,1750395041582,-409.08957861,0.00026976,4]
[366665470,1750395041591,-490.0,0.00026976,4]
[366665471,1750395041601,-1193.95,0.00026976,4]
[366665472,1750395041611,-490.0,0.00026976,4]
[366665473,1750395041621,-490.0,0.00026976,4]
[366665474,1750395041630,-1391.25,0.00026976,4]
[366665475,1750395041640,-490.0,0.00026976,4]
[366665476,1750395041650,-490.0,0.00026976,4]
[366665477,1750395041660,-490.0,0.00026976,4]
[366665478,1750395041670,-490.0,0.00026976,4]
[366665479,1750395041680,-490.0,0.00026976,4]
[366665480,1750395041691,-1906.21,0.00026976,4]
[366665481,1750395041701,-490.0,0.00026976,4]
[366665482,1750395041711,-490.0,0.00026976,4]
[366665483,1750395041721,-490.0,0.00026976,4]
[366665484,1750395041731,-490.0,0.00026976,4]
[366665485,1750395041742,-490.0,0.00026976,4]
[366665486,1750395041753,-490.0,0.00026976,4]
[366665487,1750395041763,-490.0,0.00026976,4]
[366665488,1750395041772,-589.09,0.00026976,4]
[366665489,1750395041783,-490.0,0.00026976,4]
[366665490,1750395041794,-490.0,0.00026976,4]
[366665491,1750395041806,-490.0,0.00026976,4]
[366665492,1750395041815,-490.0,0.00026976,4]
[366665493,1750395041825,-3439.18,0.00026976,4]
[366665494,1750395041835,-490.0,0.00026976,4]
[366665495,1750395041846,-490.0,0.00026976,4]
[366665496,1750395041859,-682.94,0.00026976,4]
[366665497,1750395041869,-490.0,0.00026976,4]
[366665498,1750395041880,-500.0,0.00026976,2]
[366665499,1750395041892,-490.0,0.00026976,4]
[366665500,1750395041902,-490.0,0.00026976,4]
[366665501,1750395041913,-490.0,0.00026976,4]
[366665502,1750395041924,-490.0,0.00026976,4]
[366665503,1750395042189,-561.24,0.00026976,4]
[366665504,1750395042201,-490.0,0.00026976,4]
[366665505,1750395042210,-490.0,0.00026976,4]
[366665506,1750395042220,-39536.9271149,0.00026976,2]
[366665507,1750395042230,-6738.54330664,0.00026976,2]
[366665508,1750395042239,-69189.6224511,0.00026977,2]
[366665509,1750395042250,-37061.9881865,0.00026977,2]
[366665510,1750395042260,-173.27426874,0.00026979,2]
[366665511,1750395042270,-150.0,0.00026982,2]
[366665512,1750395042280,-490.0,0.00026982,4]
[366665513,1750395042289,-490.0,0.00026982,4]
[366665514,1750395042299,-490.0,0.00026982,4]
[366665515,1750395042309,-490.0,0.00026982,4]
[366665516,1750395042318,-490.0,0.00026982,4]
[366665517,1750395042328,-170.56604916,0.00026982,4]
[366665518,1750395042338,-490.0,0.00026982,4]
[366665519,1750395042348,-490.0,0.00026982,4]
[366665520,1750395042358,-490.0,0.00026982,4]
[366665521,1750395042368,-490.0,0.00026982,4]
[366665522,1750395042377,-490.0,0.00026982,4]
[366665523,1750395042387,-490.0,0.00026982,4]
[366665524,1750395042396,-490.0,0.00026982,4]
[366665525,1750395042406,-535.13,0.00026982,4]
[366665526,1750395042416,-490.0,0.00026982,4]
[366665527,1750395042426,-930.23,0.00026982,4]
[366665528,1750395042437,-490.0,0.00026982,4]
[366665529,1750395042447,-794.83,0.00026982,4]
[366665530,1750395042457,-1236.16,0.00026982,4]
[366665531,1750395042467,-1595.51,0.00026982,4]
[366665532,1750395042478,-878.12,0.00026982,4]
[366665533,1750395042488,-2085.96,0.00026982,4]
[366665534,1750395042498,-1446.84,0.00026982,4]
[366665535,1750395042508,-490.0,0.00026982,4]
[366665536,1750395042518,-1445.74,0.00026982,4]
[366665537,1750395042528,-943.76,0.00026982,4]
[366665538,1750395042538,-490.0,0.00026982,4]
[366665539,1750395042548,-568.28,0.00026982,4]
[366665540,1750395042558,-717.73,0.00026982,4]
[366665541,1750395042569,-1939.42,0.00026982,4]
[366665542,1750395042578,-500.0,0.00026982,2]
[366665543,1750395042588,-495.97829412,0.00026982,2]
[366665544,1750395042598,-500.0,0.00026982,2]
[366665545,1750395042608,-446.85608359,0.00026982,2]
[366665546,1750395042617,-500.0,0.00026982,2]
[366665547,1750395042627,-500.0,0.00026982,2]
[366665548,1750395042637,-490.0,0.00026983,4]
[366665549,1750395042646,-490.0,0.00026983,4]
[366665550,1750395042656,-490.0,0.00026983,4]
[366665551,1750395042665,-490.0,0.00026983,4]
[366665552,1750395042675,-490.0,0.00026983,2]
[366665553,1750395042684,-490.0,0.00026983,4]
[366665554,1750395042694,-490.0,0.00026983,4]
[366665555,1750395042704,-490.0,0.00026983,4]
[366665556,1750395042714,-490.0,0.00026983,4]
[366665557,1750395042724,-490.0,0.00026983,4]
[366665558,1750395042734,-490.0,0.00026983,4]
[366665559,1750395042744,-490.0,0.00026983,4]
[366665560,1750395042755,-694.8,0.00026983,4]
[366665561,1750395042765,-490.0,0.00026983,4]
[366665562,1750395042776,-491.08088205,0.00026983,4]
[366665563,1750395042786,-1197.39,0.00026983,4]
[366665564,1750395042795,-490.0,0.00026983,4]
[366665565,1750395042806,-490.0,0.00026983,4]
[366665566,1750395042816,-490.0,0.00026983,4]
[366665567,1750395042826,-542.62,0.00026983,4]
[366665568,1750395042836,-490.0,0.00026983,4]
[366665569,1750395042846,-490.0,0.00026983,4]
[366665570,1750395042856,-1034.28,0.00026983,4]
[366665571,1750395042867,-1692.98,0.00026983,4]
[366665572,1750395042877,-490.0,0.00026983,4]
[366665573,1750395042887,-490.0,0.00026983,4]
[366665574,1750395042897,-695.84,0.00026983,4]
[366665575,1750395042907,-642.11,0.00026983,4]
[366665576,1750395042916,-490.0,0.00026983,4]
[366665577,1750395042926,-929.64,0.00026983,4]
[366665578,1750395042937,-722.67,0.00026983,4]
[366665579,1750395042947,-444.99948424,0.00026983,4]
[366665580,1750395042958,-490.0,0.00026983,4]
[366665581,1750395042968,-1544.41,0.00026983,4]
[366665582,1750395042978,-490.0,0.00026983,4]
[366665583,1750395042988,-380.37605082,0.00026983,4]
[366665584,1750395042999,-1364.45,0.00026983,4]
[366665585,1750395043008,-490.0,0.00026983,4]
[366665586,1750395043020,-698.37,0.00026983,4]
[366665587,1750395043030,-490.0,0.00026983,4]
[366665588,1750395043039,-490.0,0.00026983,4]
[366665589,1750395043050,-555.25,0.00026983,4]
[366665590,1750395043060,-490.0,0.00026983,4]
[366665591,1750395043070,-567.64,0.00026983,4]
[366665592,1750395043080,-490.0,0.00026983,4]
[366665593,1750395043090,-1398.63,0.00026983,4]
[366665594,1750395043100,-490.0,0.00026983,4]
[366665595,1750395043112,-490.0,0.00026983,4]
[366665596,1750395043122,-721.93,0.00026983,4]
[366665597,1750395043132,-490.0,0.00026983,4]
[366665598,1750395043142,-490.0,0.00026983,4]
[366665599,1750395043152,-490.0,0.00026983,4]
[366665600,1750395043162,-490.0,0.00026983,4]
[366665601,1750395043172,-703.89,0.00026983,4]
[366665602,1750395043183,-490.0,0.00026983,4]
[366665603,1750395043193,-617.03,0.00026983,4]
[366665604,1750395043203,-771.33,0.00026983,4]
[366665605,1750395043213,-534.48,0.00026983,4]
[366665606,1750395043222,-494.62,0.00026983,4]
[366665607,1750395043233,-565.12,0.00026983,4]
[366665608,1750395043243,-490.0,0.00026983,4]
[366665609,1750395043253,-490.0,0.00026983,4]
[366665610,1750395043263,-1240.24,0.00026983,4]
[366665611,1750395043273,-490.0,0.00026983,4]
[366665612,1750395043283,-490.0,0.00026983,4]
[366665613,1750395043294,-490.0,0.00026983,4]
[366665614,1750395043303,-546.14,0.00026983,4]
[366665615,1750395043314,-490.0,0.00026983,4]
[366665616,1750395043324,-490.0,0.00026983,4]
[366665617,1750395043335,-490.0,0.00026983,4]
[366665618,1750395043344,-490.0,0.00026983,4]
[366665619,1750395043355,-490.0,0.00026983,4]
[366665620,1750395043365,-983.96,0.00026983,4]
[366665621,1750395043376,-490.0,0.00026983,4]
[366665622,1750395043386,-490.0,0.00026983,4]
[366665623,1750395043397,-490.0,0.00026983,4]
[366665624,1750395043407,-490.0,0.00026983,4]
[366665625,1750395043417,-1217.94,0.00026983,4]
[366665626,1750395043427,-182.84549443,0.00026983,4]
[366665627,1750395043438,-490.0,0.00026983,4]
[366665628,1750395043448,-490.0,0.00026983,4]
[366665629,1750395043458,-896.06,0.00026983,4]
[366665630,1750395043468,-490.0,0.00026983,4]
[366665631,1750395043478,-490.0,0.00026983,4]
[366665632,1750395043488,-490.0,0.00026983,4]
[366665633,1750395043515,-490.0,0.00026983,4]
[366665634,1750395043536,-490.0,0.00026983,4]
[366665635,1750395043558,-490.0,0.00026983,4]
[366665636,1750395043580,-1010.11,0.00026983,4]
[366665637,1750395043600,-907.96,0.00026983,4]
[366665638,1750395043623,-490.0,0.00026983,4]
[366665639,1750395043643,-490.0,0.00026983,4]
[366665640,1750395043668,-624.62,0.00026983,4]
[366665641,1750395043690,-490.0,0.00026983,4]
[366665642,1750395043712,-749.77,0.00026983,4]
[366665643,1750395043732,-490.0,0.00026983,4]
[366665644,1750395043748,-490.0,0.00026983,4]
[366665645,1750395043770,-768.72,0.00026983,4]
[366665646,1750395043784,-792.4,0.00026983,4]
[366665647,1750395043807,-490.0,0.00026983,4]
[366665648,1750395043822,-490.0,0.00026983,4]
[366665649,1750395043842,-1162.29,0.00026983,4]
[366665650,1750395043859,-490.0,0.00026983,4]
[366665651,1750395043876,-490.0,0.00026983,4]
[366665652,1750395043902,-490.0,0.00026983,4]
[366665653,1750395043922,-490.0,0.00026983,4]
[366665654,1750395043940,-490.0,0.00026983,4]
[366665655,1750395043957,-490.0,0.00026983,4]
[366665656,1750395043976,-490.0,0.00026983,4]
[366665657,1750395043994,-490.0,0.00026983,4]
[366665658,1750395044011,-1960.48,0.00026983,4]
[366665659,1750395044029,-490.0,0.00026983,4]
[366665660,1750395044047,-840.99,0.00026983,4]
[366665661,1750395044065,-490.0,0.00026983,4]
[366665664,1750395044082,-671.88,0.00026983,4]
[366665667,1750395044101,-509.82,0.00026983,4]
[366665669,1750395044123,-490.0,0.00026983,4]
[366665670,1750395044143,-490.0,0.00026983,4]
[366665671,1750395044162,-490.0,0.00026983,4]
[366665672,1750395044180,-514.85,0.00026983,4]
[366665673,1750395044199,-1693.88,0.00026983,4]
[366665674,1750395044218,-832.47,0.00026983,4]
[366665675,1750395044236,-935.82,0.00026983,4]
[366665676,1750395044254,-1281.26,0.00026983,4]
[366665677,1750395044272,-490.0,0.00026983,4]
[366665678,1750395044290,-695.15,0.00026983,4]
[366665679,1750395044308,-3182.41,0.00026983,4]
[366665680,1750395044326,-490.0,0.00026983,4]
[366665681,1750395044343,-490.0,0.00026983,4]
[366665682,1750395044361,-490.0,0.00026983,4]
[366665683,1750395044379,-490.0,0.00026983,4]
[366665684,1750395044397,-1052.67,0.00026983,4]
[366665685,1750395044415,-916.54,0.00026983,4]
[366665686,1750395044434,-1155.43,0.00026983,4]
[366665687,1750395044452,-591.76,0.00026983,4]
[366665688,1750395044471,-490.0,0.00026983,4]
[366665689,1750395044489,-490.0,0.00026983,4]
[366665690,1750395044507,-490.0,0.00026983,4]
[366665691,1750395044526,-490.0,0.00026983,4]
[366665692,1750395044544,-490.0,0.00026983,4]
[366665693,1750395044562,-500.37978151,0.00026983,4]
[366665694,1750395044581,-490.0,0.00026983,4]
[366665695,1750395044599,-511.41,0.00026983,4]
[366665696,1750395044616,-649.81,0.00026983,4]
[366665697,1750395044632,-490.0,0.00026983,4]
[366665698,1750395044650,-633.48,0.00026983,4]
[366665699,1750395044668,-893.34,0.00026983,4]
[366665700,1750395044686,-490.0,0.00026983,4]
[366665701,1750395044704,-490.0,0.00026983,4]
[366665702,1750395044721,-581.73,0.00026983,4]
[366665703,1750395044739,-490.0,0.00026983,4]
[366665704,1750395044756,-490.0,0.00026983,4]
[366665705,1750395044775,-1445.74,0.00026983,4]
[366665706,1750395044793,-490.0,0.00026983,4]
[366665707,1750395044811,-1767.78,0.00026983,4]
[366665708,1750395044829,-729.62,0.00026983,4]
[366665709,1750395044846,-1589.41,0.00026983,4]
[366665710,1750395044864,-12565.96,0.00026983,4]
[366665711,1750395044881,-1518.73,0.00026983,4]
[366665712,1750395044899,-490.0,0.00026983,4]
[366665713,1750395044918,-490.0,0.00026983,4]
[366665714,1750395044938,-2017.36,0.00026983,4]
[366665715,1750395044955,-490.0,0.00026983,4]
[366665716,1750395044978,-490.0,0.00026983,4]
[366665717,1750395044996,-537.83,0.00026983,4]
[366665718,1750395045015,-1548.17,0.00026983,4]
[366665719,1750395045032,-732.66,0.00026983,4]
[366665720,1750395045050,-490.0,0.00026983,4]
[366665721,1750395045068,-1567.39,0.00026983,4]
[366665722,1750395045086,-903.54,0.00026983,4]
[366665723,1750395045105,-795.83,0.00026983,4]
[366665724,1750395045124,-150.0,0.00026984,2]
[366665726,1750395045142,-490.0,0.00026986,4]
[366665728,1750395045161,-490.0,0.00026986,4]
[366665729,1750395045181,-490.0,0.00026986,4]
[366665730,1750395045199,-172.36774883,0.00026986,4]
[366665731,1750395045217,-490.0,0.00026986,4]
[366665732,1750395045236,-529.98,0.00026986,4]
[366665733,1750395045254,-194.99414489,0.00026986,4]
[366665734,1750395045273,-500.0,0.00026986,4]
[366665735,1750395045294,-490.0,0.00026986,4]
[366665736,1750395045312,-614.3637973,0.00026986,4]
[366665737,1750395045330,-490.0,0.00026986,4]
[366665738,1750395045348,-1000.0,0.00026986,4]
[366665739,1750395045366,-490.0,0.00026986,4]
[366665740,1750395045384,-490.0,0.00026986,4]
[366665741,1750395045405,-490.0,0.00026986,4]
[366665742,1750395045424,-493.39,0.00026986,4]
[366665743,1750395045443,-490.0,0.00026986,4]
[366665744,1750395045461,-490.0,0.00026986,4]
[366665745,1750395045478,-490.0,0.00026986,4]
[366665746,1750395045495,-490.0,0.00026986,4]
[366665747,1750395045513,-490.0,0.00026986,4]
[366665748,1750395045531,-490.0,0.00026986,4]
[366665749,1750395045549,-490.0,0.00026986,4]
[366665750,1750395045567,-270.84318029,0.00026986,4]
[366665751,1750395045585,-490.0,0.00026986,4]
[366665752,1750395045602,-490.0,0.00026986,4]
[366665753,1750395045621,-579.68204909,0.00026986,4]
[366665754,1750395045639,-490.0,0.00026986,4]
[366665755,1750395045657,-587.57343945,0.00026986,4]
[366665756,1750395045674,-585.74371178,0.00026986,4]
[366665757,1750395045692,-490.0,0.00026986,4]
[366665758,1750395045709,-490.0,0.00026986,4]
[366665759,1750395045728,-490.0,0.00026986,4]
[366665760,1750395045740,-490.0,0.00026986,4]
[366665761,1750395045750,-490.0,0.00026986,4]
[366665762,1750395045760,-490.0,0.00026986,4]
[366665763,1750395045770,-490.0,0.00026986,4]
[366665764,1750395045780,-490.0,0.00026986,4]
[366665774,1750395046208,-490.0,0.00026986,4]
[366665775,1750395046243,-490.0,0.00026986,4]
[366665776,1750395046260,-490.0,0.00026986,4]
[366665777,1750395046270,-490.0,0.00026986,4]
[366665778,1750395046280,-490.0,0.00026986,4]
[366665779,1750395046290,-490.0,0.00026986,4]
[366665780,1750395046299,-490.0,0.00026986,4]
[366665781,1750395046309,-490.0,0.00026986,4]
[366665782,1750395046319,-490.0,0.00026986,4]
[366665783,1750395046330,-490.0,0.00026986,4]
[366665784,1750395046340,-490.0,0.00026986,4]
[366665785,1750395046350,-475.4459652,0.00026986,4]
[366665786,1750395046360,-490.0,0.00026986,4]
[366665787,1750395046370,-490.0,0.00026986,4]
[366665788,1750395046380,-490.0,0.00026986,4]
[366665789,1750395046390,-490.9463117,0.00026986,4]
[366665790,1750395046399,-490.0,0.00026986,4]
[366665791,1750395046409,-490.0,0.00026986,4]
[366665792,1750395046418,-445.46893472,0.00026986,4]
[366665793,1750395046428,-590.44087693,0.00026986,4]
[366665794,1750395046437,-375.24071773,0.00026986,4]
[366665795,1750395046449,-490.0,0.00026986,4]
[366665796,1750395046459,-490.0,0.00026986,4]
[366665797,1750395046469,-490.0,0.00026986,4]
[366665798,1750395046479,-490.0,0.00026986,4]
[366665799,1750395046489,-490.0,0.00026986,4]
[366665800,1750395046501,-490.0,0.00026986,4]
[366665801,1750395046512,-490.0,0.00026986,4]
[366665802,1750395046522,-490.0,0.00026986,4]
[366665803,1750395046533,-490.0,0.00026986,4]
[366665804,1750395046544,-490.0,0.00026986,4]
[366665805,1750395046554,-490.0,0.00026986,4]
[366665806,1750395046564,-490.0,0.00026986,4]
[366665807,1750395046573,-490.0,0.00026986,4]
[366665808,1750395046584,-490.0,0.00026986,4]
[366665809,1750395046595,-490.0,0.00026986,4]
[366665810,1750395046606,-490.0,0.00026986,4]
[366665811,1750395046618,-490.0,0.00026986,4]
[366665812,1750395046628,-490.0,0.00026986,4]
[366665813,1750395046640,-490.0,0.00026986,4]
[366665814,1750395046651,-330.0,0.00026986,4]
[366665815,1750395046661,-490.0,0.00026986,4]
[366665816,1750395046671,-490.0,0.00026986,4]
[366665817,1750395046680,-490.0,0.00026986,4]
[366665818,1750395046690,-490.0,0.00026986,4]
[366665819,1750395046700,-461.81763266,0.00026986,4]
[366665820,1750395046709,-328.38527871,0.00026986,4]
[366665821,1750395046719,-490.0,0.00026986,4]
[366665822,1750395046728,-423.4817463,0.00026986,4]
[366665823,1750395046738,-490.0,0.00026986,4]
[366665824,1750395046748,-552.46229094,0.00026986,4]
[366665825,1750395046757,-503.00509787,0.00026986,4]
[366665826,1750395046767,-490.0,0.00026986,4]
[366665827,1750395046776,-492.42254388,0.00026986,4]
[366665828,1750395046786,-3183.05,0.00026986,4]
[366665829,1750395046795,-310.0,0.00026986,4]
[366665830,1750395046805,-494.60133844,0.00026986,4]
[366665831,1750395046815,-1591.72,0.00026986,4]
[366665832,1750395046825,-688.49,0.00026986,4]
[366665833,1750395046834,-490.0,0.00026986,4]
[366665834,1750395046845,-540.0,0.00026986,4]
[366665835,1750395046854,-1366.49,0.00026986,4]
[366665836,1750395046864,-1236.16,0.00026986,4]
[366665837,1750395046874,-1236.16,0.00026986,4]
[366665838,1750395046884,-1287.98,0.00026986,4]
[366665839,1750395046893,-490.0,0.00026986,4]
[366665840,1750395046903,-1494.26,0.00026986,4]
[366665841,1750395046912,-490.0,0.00026986,4]
[366665842,1750395046922,-490.0,0.00026986,4]
[366665843,1750395046932,-490.0,0.00026986,4]
[366665844,1750395046943,-1380.5,0.00026986,4]
[366665845,1750395046952,-205.91096649,0.00026986,4]
[366665846,1750395046962,-490.0,0.00026986,4]
[366665847,1750395046973,-490.0,0.00026986,4]
[366665848,1750395046983,-5059.73,0.00026986,4]
[366665849,1750395046993,-538.0879694,0.00026986,4]
[366665850,1750395047002,-430.542331,0.00026986,4]
[366665851,1750395047012,-490.0,0.00026986,2]
[366665852,1750395047022,-490.0,0.00026986,4]
[366665853,1750395047032,-5366.49,0.00026986,4]
[366665854,1750395047042,-290.0,0.00026986,4]
[366665855,1750395047052,-2442.2,0.00026986,4]
[366665856,1750395047062,-3770.69,0.00026986,4]
[366665857,1750395047072,-1445.74,0.00026986,4]
[366665858,1750395047082,-1445.74,0.00026986,4]
[366665859,1750395047092,-490.0,0.00026986,4]
[366665860,1750395047102,-1481.39,0.00026986,4]
[366665861,1750395047116,-1574.68,0.00026986,4]
[366665862,1750395047126,-490.0,0.00026986,4]
[366665863,1750395047135,-1810.8,0.00026986,4]
[366665864,1750395047145,-490.0,0.00026986,4]
[366665865,1750395047154,-217.46768066,0.00026986,4]
[366665866,1750395047164,-11404.03,0.00026986,4]
[366665867,1750395047174,-938.96,0.00026986,4]
[366665868,1750395047183,-490.0,0.00026986,4]
[366665869,1750395047194,-490.0,0.00026986,4]
[366665870,1750395047204,-500.0,0.00026986,2]
[366665871,1750395047214,-500.0,0.00026986,2]
[366665872,1750395047224,-490.0,0.00026986,4]
[366665873,1750395047234,-4335.58,0.00026986,4]
[366665874,1750395047244,-493.48035126,0.00026986,4]
[366665875,1750395047254,-490.0,0.00026986,4]
[366665876,1750395047264,-338.7938325,0.00026987,4]
[366665877,1750395047274,-490.0,0.00026987,4]
[366665878,1750395047285,-490.0,0.00026987,4]
[366665879,1750395047295,-490.0,0.00026987,4]
[366665880,1750395047305,-490.0,0.00026987,4]
[366665881,1750395047317,-490.0,0.00026987,4]
[366665882,1750395047327,-490.0,0.00026987,4]
[366665883,1750395047336,-490.0,0.00026987,4]
[366665884,1750395047346,-490.0,0.00026987,4]
[366665885,1750395047356,-490.0,0.00026987,4]
[366665886,1750395047366,-490.0,0.00026987,4]
[366665887,1750395047376,-490.0,0.00026987,4]
[366665888,1750395047387,-490.0,0.00026987,4]
[366665889,1750395047396,-490.0,0.00026987,4]
[366665890,1750395047406,-490.0,0.00026987,4]
[366665891,1750395047416,-490.0,0.00026987,4]
[366665892,1750395047426,-490.0,0.00026987,4]
[366665893,1750395047435,-490.0,0.00026987,4]
[366665894,1750395047446,-490.0,0.00026987,4]
[366665895,1750395047456,-713.36,0.00026987,4]
[366665896,1750395047465,-490.0,0.00026987,4]
[366665897,1750395047475,-490.0,0.00026987,4]
[366665898,1750395047484,-490.0,0.00026987,4]
[366665899,1750395047494,-490.0,0.00026987,4]
[366665900,1750395047504,-490.0,0.00026987,4]
[366665901,1750395047513,-490.0,0.00026987,4]
[366665902,1750395047523,-490.0,0.00026987,4]
[366665903,1750395047532,-490.0,0.00026987,4]
[366665904,1750395047542,-859.16,0.00026987,4]
[366665905,1750395047552,-560.7,0.00026987,4]
[366665906,1750395047561,-490.0,0.00026987,4]
[366665907,1750395047571,-490.0,0.00026987,4]